fUST/lending_fUST_20250819
["ID","MTS","AMOUNT","RATE_DAILY","PERIOD"]
[380224646,1755616259484,-2321.29,0.00021095,2]
[380224647,1755616259494,-480.0,0.00021095,2]
[380224648,1755616259503,-640.78,0.00021095,2]
[380224649,1755616259513,-480.0,0.00021095,2]
[380224650,1755616259525,-1158.02,0.00021095,2]
[380224651,1755616259534,-480.0,0.00021095,2]
[380224652,1755616259544,-177.91,0.00021095,2]
[380224653,1755616259554,-200.57,0.00021095,2]
[380224654,1755616259564,-480.0,0.00021095,2]
[380224655,1755616259574,-221.54537115,0.00021095,2]
[380224656,1755616259583,-480.0,0.00021095,2]
[380224657,1755616259594,-480.0,0.00021095,2]
[380224658,1755616259604,-1100.62,0.00021095,2]
[380224659,1755616259614,-480.0,0.00021095,2]
[380224660,1755616259624,-661.98,0.00021095,2]
[380224661,1755616259633,-434.58,0.00021095,2]
[380224662,1755616259643,-480.0,0.00021095,2]
[380224663,1755616259654,-706.96,0.00021095,2]
[380224664,1755616259663,-480.0,0.00021095,2]
[380224665,1755616259673,-480.0,0.00021095,2]
[380224666,1755616259683,-480.0,0.00021095,2]
[380224667,1755616259693,-1185.93,0.00021095,2]
[380224668,1755616259704,-559.38,0.00021095,2]
[380224669,1755616259714,-480.0,0.00021095,2]
[380224670,1755616259723,-770.15,0.00021095,2]
[380224671,1755616259733,-563.34,0.00021095,2]
[380224672,1755616259742,-531.66332902,0.00021095,2]
[380224673,1755616259751,-480.0,0.00021095,2]
[380224674,1755616259760,-480.0,0.00021095,2]
[380224675,1755616259772,-480.0,0.00021095,2]
[380224676,1755616259782,-498.68,0.00021095,2]
[380224677,1755616259792,-490.54,0.00021095,2]
[380224678,1755616259802,-2730.0,0.00021095,2]
[380224679,1755616259811,-253.36,0.00021095,2]
[380224680,1755616259821,-636.86,0.00021095,2]
[380224681,1755616259831,-480.0,0.00021095,2]
[380224682,1755616259841,-2825.73,0.00021095,2]
[380224683,1755616259851,-577.81,0.00021095,2]
[380224684,1755616259860,-1817.53,0.00021095,2]
[380224685,1755616259869,-799.99,0.00021095,2]
[380224686,1755616259879,-217.57294547,0.00021095,2]
[380224687,1755616259888,-354.84,0.00021095,2]
[380224688,1755616259898,-480.0,0.00021095,2]
[380224689,1755616259907,-1500.0,0.00021116,2]
[380224690,1755616259917,-512.15433089,0.00021125,2]
[380224691,1755616259926,-5306.44058765,0.00021138,2]
[380224692,1755616259935,-151.0,0.000213,4]
[380224693,1755616259945,-711.19643412,0.00021364,2]
[380224694,1755616259955,-776.17,0.00021368,2]
[380224695,1755616259964,-480.0,0.00021369,2]
[380224696,1755616259974,-2150.01,0.00021369,2]
[380224697,1755616259983,-594.74,0.00021369,2]
[380224698,1755616259993,-480.0,0.00021369,2]
[380224699,1755616260003,-480.0,0.00021369,2]
[380224700,1755616260013,-480.0,0.00021369,2]
[380224701,1755616260028,-480.0,0.00021369,2]
[380224702,1755616260038,-480.0,0.00021369,2]
[380224703,1755616260050,-736.97,0.00021369,2]
[380224704,1755616260061,-480.0,0.00021369,2]
[380224705,1755616260072,-2321.29,0.00021369,2]
[380224706,1755616260087,-480.0,0.00021369,2]
[380224707,1755616260098,-640.78,0.00021369,2]
[380224708,1755616260109,-480.0,0.00021369,2]
[380224709,1755616260119,-1158.02,0.00021369,2]
[380224710,1755616260130,-480.0,0.00021369,2]
[380224711,1755616260140,-480.0,0.00021369,2]
[380224712,1755616260152,-480.0,0.00021369,2]
[380224713,1755616260162,-480.0,0.00021369,2]
[380224714,1755616260172,-1100.62,0.00021369,2]
[380224715,1755616260182,-480.0,0.00021369,2]
[380224716,1755616260192,-661.98,0.00021369,2]
[380224717,1755616260202,-480.0,0.00021369,2]
[380224718,1755616260212,-706.96,0.00021369,2]
[380224719,1755616260222,-480.0,0.00021369,2]
[380224720,1755616260232,-327.87,0.00021369,2]
[380224721,1755616260241,-480.0,0.00021369,2]
[380224722,1755616260250,-1185.93,0.00021369,2]
[380224723,1755616260260,-480.0,0.00021369,2]
[380224724,1755616260274,-770.15,0.00021369,2]
[380224725,1755616260284,-480.0,0.00021369,2]
[380224726,1755616260294,-480.0,0.00021369,2]
[380224727,1755616260303,-480.0,0.00021369,2]
[380224728,1755616260312,-498.68,0.00021369,2]
[380224729,1755616260322,-2730.0,0.00021369,2]
[380224730,1755616260332,-636.86,0.00021369,2]
[380224731,1755616260341,-480.0,0.00021369,2]
[380224732,1755616260351,-2825.73,0.00021369,2]
[380224733,1755616260360,-577.81,0.00021369,2]
[380224734,1755616260370,-1817.53,0.00021369,2]
[380224735,1755616260380,-799.99,0.00021369,2]
[380224736,1755616260390,-480.0,0.00021369,2]
[380224737,1755616260400,-3904.507,0.0002142,2]
[380224738,1755616260409,-720.0,0.00021504,20]
[380224739,1755616260418,-5306.44058765,0.00021551,2]
[380224740,1755616260428,-1000.0,0.00021625,2]
[380224741,1755616260438,-1000.0,0.00021625,2]
[380224742,1755616260451,-1000.0,0.00021625,2]
[380224743,1755616260460,-1000.0,0.00021625,2]
[380224744,1755616260470,-1000.0,0.00021625,2]
[380224745,1755616260480,-908.58647314,0.00021629,2]
[380224746,1755616260489,-571.95782399,0.00021629,2]
[380224747,1755616260499,-460.0,0.00021631,2]
[380224748,1755616260508,-480.0,0.00021643,2]
[380224749,1755616260519,-2150.01,0.00021643,2]
[380224750,1755616260530,-480.0,0.00021643,2]
[380224751,1755616260539,-480.0,0.00021643,2]
[380224752,1755616260549,-480.0,0.00021643,2]
[380224753,1755616260559,-480.0,0.00021643,2]
[380224754,1755616260568,-480.0,0.00021643,2]
[380224755,1755616260578,-736.97,0.00021643,2]
[380224756,1755616260587,-480.0,0.00021643,2]
[380224757,1755616260597,-2321.29,0.00021643,2]
[380224758,1755616260607,-480.0,0.00021643,2]
[380224759,1755616260616,-640.78,0.00021643,2]
[380224760,1755616260626,-480.0,0.00021643,2]
[380224761,1755616260635,-1158.02,0.00021643,2]
[380224762,1755616260645,-480.0,0.00021643,2]
[380224763,1755616260655,-480.0,0.00021643,2]
[380224764,1755616260665,-548.60419117,0.00021643,2]
[380224765,1755616260674,-288.23,0.00021643,2]
[380224766,1755616260684,-480.0,0.00021643,2]
[380224767,1755616260693,-1100.62,0.00021643,2]
[380224768,1755616260702,-480.0,0.00021643,2]
[380224769,1755616260712,-661.98,0.00021643,2]
[380224770,1755616260721,-706.96,0.00021643,2]
[380224771,1755616260731,-480.0,0.00021643,2]
[380224772,1755616260740,-480.0,0.00021643,2]
[380224773,1755616260750,-1185.93,0.00021643,2]
[380224774,1755616260760,-480.0,0.00021643,2]
[380224775,1755616260770,-770.15,0.00021643,2]
[380224776,1755616260780,-480.0,0.00021643,2]
[380224777,1755616260790,-480.0,0.00021643,2]
[380224778,1755616260799,-480.0,0.00021643,2]
[380224779,1755616260809,-498.68,0.00021643,2]
[380224780,1755616260818,-2730.0,0.00021643,2]
[380224781,1755616260827,-636.86,0.00021643,2]
[380224782,1755616260837,-480.0,0.00021643,2]
[380224783,1755616260846,-2825.73,0.00021643,2]
[380224784,1755616260856,-577.81,0.00021643,2]
[380224785,1755616260865,-1817.53,0.00021643,2]
[380224786,1755616260875,-799.99,0.00021643,2]
[380224787,1755616260884,-480.0,0.00021643,2]
[380224788,1755616260893,-5039.85994276,0.0002176,2]
[380224789,1755616260903,-5000.0,0.0002176,2]
[380224790,1755616260912,-5000.0,0.0002176,2]
[380224791,1755616260921,-5000.0,0.0002176,2]
[380224792,1755616260931,-5000.0,0.0002176,2]
[380224793,1755616260940,-5539.00146589,0.00021839,2]
[380224794,1755616260950,-151.0,0.000219,3]
[380224795,1755616260959,-1000.0,0.00021917,2]
[380224796,1755616260969,-1000.0,0.00021917,2]
[380224797,1755616260978,-1000.0,0.00021917,2]
[380224798,1755616260988,-1000.0,0.00021917,2]
[380224799,1755616260998,-574.41581703,0.00021917,2]
[380224800,1755616261007,-480.0,0.00021917,2]
[380224801,1755616261017,-2150.01,0.00021917,2]
[380224802,1755616261028,-480.0,0.00021917,2]
[380224803,1755616261038,-480.0,0.00021917,2]
[380224804,1755616261048,-252.56,0.00021917,2]
[380224805,1755616261058,-480.0,0.00021917,2]
[380224806,1755616261068,-480.0,0.00021917,2]
[380224807,1755616261081,-736.97,0.00021917,2]
[380224808,1755616261090,-480.0,0.00021917,2]
[380224809,1755616261100,-2321.29,0.00021917,2]
[380224810,1755616261110,-480.0,0.00021917,2]
[380224811,1755616261119,-640.78,0.00021917,2]
[380224812,1755616261129,-507.24,0.00021917,2]
[380224813,1755616261138,-1158.02,0.00021917,2]
[380224814,1755616261150,-422.58,0.00021917,2]
[380224815,1755616261160,-480.0,0.00021917,2]
[380224816,1755616261169,-480.0,0.00021917,2]
[380224817,1755616261179,-1100.62,0.00021917,2]
[380224818,1755616261189,-480.0,0.00021917,2]
[380224819,1755616261198,-661.98,0.00021917,2]
[380224820,1755616261207,-706.96,0.00021917,2]
[380224821,1755616261217,-480.0,0.00021917,2]
[380224822,1755616261227,-480.0,0.00021917,2]
[380224823,1755616261238,-1185.93,0.00021917,2]
[380224824,1755616261247,-500.0,0.00021917,2]
[380224825,1755616261257,-309.41,0.00021917,2]
[380224826,1755616261266,-362.96,0.00021917,2]
[380224827,1755616261279,-770.15,0.00021917,2]
[380224828,1755616261288,-480.0,0.00021917,2]
[380224829,1755616261298,-181.81,0.00021917,2]
[380224830,1755616261307,-480.0,0.00021917,2]
[380224831,1755616261317,-498.68,0.00021917,2]
[380224832,1755616261326,-2730.0,0.00021917,2]
[380224833,1755616261335,-636.86,0.00021917,2]
[380224834,1755616261345,-480.0,0.00021917,2]
[380224835,1755616261355,-322.15757124,0.00021917,2]
[380224836,1755616261500,-1950.40000005,0.00021917,2]
[380224837,1755616261520,-509.32012587,0.00021917,2]
[380224838,1755616261718,-268.0,0.00019178,2]
[380224839,1755616261730,-102.87141097,0.00019178,2]
[380224840,1755616261739,-480.0,0.00019178,2]
[380224841,1755616261749,-583.2,0.00019178,2]
[380224842,1755616261758,-480.0,0.00019178,2]
[380224843,1755616261768,-241.71056106,0.00019178,2]
[380224844,1755616261780,-480.0,0.00019178,2]
[380224845,1755616261789,-151.0,0.0002096,2]
[380224846,1755616261799,-151.0,0.0002096,2]
[380224847,1755616261808,-480.0,0.00021095,2]
[380224848,1755616261817,-480.0,0.00021369,2]
[380224849,1755616261827,-480.0,0.00021643,2]
[380224850,1755616261836,-43.85230284,0.00021917,2]
[380224851,1755616261846,-577.81,0.00021917,2]
[380224852,1755616261855,-1817.53,0.00021917,2]
[380224853,1755616261864,-799.99,0.00021917,2]
[380224854,1755616261874,-480.0,0.00021917,2]
[380224855,1755616261883,-5306.44058765,0.00021963,2]
[380224856,1755616261893,-12685.85563623,0.00022,7]
[380224857,1755616261902,-12090.27,0.00022,7]
[380224858,1755616261912,-3753.67,0.00022,7]
[380224859,1755616261921,-696.38,0.00022,7]
[380224860,1755616261931,-24331.25,0.00022,2]
[380224861,1755616261940,-375.88899365,0.00022,7]
[380224862,1755616261950,-528.6845513,0.00022,7]
[380224863,1755616261960,-165.0,0.00022,2]
[380224864,1755616261969,-417.15472785,0.00022,7]
[380224865,1755616261979,-160.0,0.00022,7]
[380224866,1755616261989,-154.0,0.00022,2]
[380224867,1755616261998,-151.6,0.000221,2]
[380224868,1755616262008,-1500.0,0.00022173,2]
[380224869,1755616262017,-1000.0,0.00022173,2]
[380224870,1755616262029,-1278.40611179,0.00022173,2]
[380224871,1755616262038,-1231.60244695,0.00022173,2]
[380224872,1755616262048,-1500.0,0.00022173,2]
[380224873,1755616262059,-560.0,0.00022179,2]
[380224874,1755616262070,-480.0,0.00022191,2]
[380224875,1755616262214,-2150.01,0.00022191,2]
[380224876,1755616262229,-480.0,0.00022191,2]
[380224877,1755616262239,-480.0,0.00022191,2]
[380224878,1755616262248,-480.0,0.00022191,2]
[380224879,1755616262257,-480.0,0.00022191,2]
[380224880,1755616262267,-736.97,0.00022191,2]
[380224881,1755616262279,-171.89667611,0.00022191,2]
[380224882,1755616262290,-308.10332389,0.00022191,2]
[380224883,1755616262299,-2321.29,0.00022191,2]
[380224884,1755616262309,-480.0,0.00022191,2]
[380224885,1755616262318,-640.78,0.00022191,2]
[380224886,1755616262328,-1158.02,0.00022191,2]
[380224887,1755616262338,-421.36,0.00022191,2]
[380224888,1755616262348,-480.0,0.00022191,2]
[380224889,1755616262358,-1100.62,0.00022191,2]
[380224890,1755616262367,-706.96,0.00022191,2]
[380224891,1755616262378,-661.98,0.00022191,2]
[380224892,1755616262387,-480.0,0.00022191,2]
[380224893,1755616262397,-565.12,0.00022191,2]
[380224894,1755616262406,-1185.93,0.00022191,2]
[380224895,1755616262416,-770.15,0.00022191,2]
[380224896,1755616262426,-480.0,0.00022191,2]
[380224897,1755616262435,-480.0,0.00022191,2]
[380224898,1755616262445,-498.68,0.00022191,2]
[380224899,1755616262455,-2730.0,0.00022191,2]
[380224900,1755616262465,-636.86,0.00022191,2]
[380224901,1755616262475,-480.0,0.00022191,2]
[380224902,1755616262485,-2825.73,0.00022191,2]
[380224903,1755616262495,-577.81,0.00022191,2]
[380224904,1755616262505,-1817.53,0.00022191,2]
[380224905,1755616262515,-799.99,0.00022191,2]
[380224906,1755616262527,-480.0,0.00022191,2]
[380224907,1755616262538,-154.0,0.00022192,7]
[380224908,1755616262549,-1000.0,0.000222,2]
[380224909,1755616262559,-1000.0,0.000222,2]
[380224910,1755616262569,-1000.0,0.000222,2]
[380224911,1755616262580,-494.42,0.00022204,2]
[380224912,1755616262590,-250.0,0.00022252,2]
[380224913,1755616262601,-168.0,0.00022278,2]
[380224914,1755616262612,-168.0,0.00022325,2]
[380224915,1755616262622,-9353.46375539,0.00022329,2]
[380224916,1755616262632,-152.87880415,0.00022329,2]
[380224917,1755616262641,-5306.44058765,0.00022376,2]
[380224918,1755616262651,-168.0,0.00022415,2]
[380224919,1755616262661,-168.0,0.00022445,2]
[380224920,1755616262670,-2150.01,0.00022465,2]
[380224921,1755616262680,-480.0,0.00022465,2]
[380224922,1755616262690,-357.91373261,0.00022465,2]
[380224923,1755616262699,-480.0,0.00022465,2]
[380224924,1755616262709,-423.96,0.00022465,2]
[380224925,1755616262719,-736.97,0.00022465,2]
[380224926,1755616262728,-480.0,0.00022465,2]
[380224927,1755616262737,-2321.29,0.00022465,2]
[380224928,1755616262747,-480.0,0.00022465,2]
[380224929,1755616262756,-640.78,0.00022465,2]
[380224930,1755616262765,-1158.02,0.00022465,2]
[380224931,1755616262777,-480.0,0.00022465,2]
[380224932,1755616262787,-1100.62,0.00022465,2]
[380224933,1755616262796,-706.96,0.00022465,2]
[380224934,1755616262805,-661.98,0.00022465,2]
[380224935,1755616262815,-480.0,0.00022465,2]
[380224936,1755616262825,-1185.93,0.00022465,2]
[380224937,1755616262835,-770.15,0.00022465,2]
[380224938,1755616262844,-480.0,0.00022465,2]
[380224939,1755616262854,-480.0,0.00022465,2]
[380224940,1755616262863,-498.68,0.00022465,2]
[380224941,1755616262873,-2730.0,0.00022465,2]
[380224942,1755616262882,-636.86,0.00022465,2]
[380224943,1755616262892,-480.0,0.00022465,2]
[380224944,1755616262902,-2825.73,0.00022465,2]
[380224945,1755616262911,-577.81,0.00022465,2]
[380224946,1755616262920,-1817.53,0.00022465,2]
[380224947,1755616262930,-143.46878255,0.00022465,2]
[380224948,1755616262942,-255.90501161,0.00022465,2]
[380224949,1755616262953,-400.61620584,0.00022465,2]
[380224950,1755616262963,-113.88162468,0.00022465,2]
[380224951,1755616262974,-366.11837532,0.00022465,2]
[380224952,1755616262984,-151.0,0.000225,6]
[380224953,1755616262993,-86.40062468,0.00022542,2]
[380224954,1755616263005,-81.59937532,0.00022542,2]
[380224955,1755616263015,-240.0,0.00022658,2]
[380224956,1755616263027,-587.0,0.00022662,2]
[380224957,1755616263037,-168.0,0.00022694,2]
[380224958,1755616263048,-2000.0,0.00022721,2]
[380224959,1755616263062,-660.0,0.00022727,2]
[380224960,1755616263074,-2150.01,0.00022739,2]
[380224961,1755616263084,-480.0,0.00022739,2]
[380224962,1755616263094,-480.0,0.00022739,2]
[380224963,1755616263105,-736.97,0.00022739,2]
[380224964,1755616263114,-403.80652688,0.00022739,2]
[380224965,1755616263125,-2321.29,0.00022739,2]
[380224966,1755616263135,-480.0,0.00022739,2]
[380224967,1755616263146,-640.78,0.00022739,2]
[380224968,1755616263157,-1158.02,0.00022739,2]
[380224969,1755616263167,-480.0,0.00022739,2]
[380224970,1755616263177,-1100.62,0.00022739,2]
[380224971,1755616263187,-706.96,0.00022739,2]
[380224972,1755616263197,-661.98,0.00022739,2]
[380224973,1755616263206,-480.0,0.00022739,2]
[380224974,1755616263216,-1185.93,0.00022739,2]
[380224975,1755616263226,-770.15,0.00022739,2]
[380224976,1755616263236,-480.0,0.00022739,2]
[380224977,1755616263246,-498.68,0.00022739,2]
[380224978,1755616263256,-480.0,0.00022739,2]
[380224979,1755616263266,-2730.0,0.00022739,2]
[380224980,1755616263277,-636.86,0.00022739,2]
[380224981,1755616263287,-480.0,0.00022739,2]
[380224982,1755616263296,-2825.73,0.00022739,2]
[380224983,1755616263306,-577.81,0.00022739,2]
[380224984,1755616263316,-1817.53,0.00022739,2]
[380224985,1755616263326,-799.99,0.00022739,2]
[380224986,1755616263336,-480.0,0.00022739,2]
[380224987,1755616263345,-5306.44058765,0.00022789,2]
[380224988,1755616263355,-168.0,0.00022908,2]
[380224989,1755616263365,-168.0,0.00022933,2]
[380224990,1755616263375,-151.0,0.00023,7]
[380224991,1755616263385,-160.0,0.00023,2]
[380224992,1755616263396,-168.0,0.00023,7]
[380224993,1755616263405,-2150.01,0.00023013,2]
[380224994,1755616263416,-396.38363413,0.00023013,2]
[380224995,1755616263426,-480.0,0.00023013,2]
[380224996,1755616263436,-736.97,0.00023013,2]
[380224997,1755616263445,-2321.29,0.00023013,2]
[380224998,1755616263455,-480.0,0.00023013,2]
[380224999,1755616263464,-640.78,0.00023013,2]
[380225000,1755616263474,-1158.02,0.00023013,2]
[380225001,1755616263484,-480.0,0.00023013,2]
[380225002,1755616263494,-1100.62,0.00023013,2]
[380225003,1755616263504,-706.96,0.00023013,2]
[380225004,1755616263513,-661.98,0.00023013,2]
[380225005,1755616263525,-480.0,0.00023013,2]
[380225006,1755616263535,-1185.93,0.00023013,2]
[380225007,1755616263545,-770.15,0.00023013,2]
[380225008,1755616263555,-480.0,0.00023013,2]
[380225009,1755616263565,-498.68,0.00023013,2]
[380225010,1755616263575,-480.0,0.00023013,2]
[380225011,1755616263585,-2730.0,0.00023013,2]
[380225012,1755616263595,-480.0,0.00023013,2]
[380225013,1755616263606,-636.86,0.00023013,2]
[380225014,1755616263616,-2825.73,0.00023013,2]
[380225015,1755616263627,-577.81,0.00023013,2]
[380225016,1755616263637,-1817.53,0.00023013,2]
[380225017,1755616263647,-799.99,0.00023013,2]
[380225018,1755616263657,-480.0,0.00023013,2]
[380225019,1755616263667,-154.0,0.00023014,7]
[380225020,1755616263677,-168.0,0.0002302,2]
[380225021,1755616263687,-5306.44058765,0.00023201,2]
[380225022,1755616263696,-168.0,0.00023212,2]
[380225023,1755616263707,-168.0,0.00023237,2]
[380225024,1755616263717,-1500.0,0.00023269,2]
[380225025,1755616263728,-760.0,0.00023275,2]
[380225026,1755616263739,-2150.01,0.00023287,2]
[380225027,1755616263749,-480.0,0.00023287,2]
[380225028,1755616263759,-736.97,0.00023287,2]
[380225029,1755616263769,-2321.29,0.00023287,2]
[380225030,1755616263784,-312.98,0.00023287,2]
[380225031,1755616263794,-640.78,0.00023287,2]
[380225032,1755616263804,-1158.02,0.00023287,2]
[380225033,1755616263814,-480.0,0.00023287,2]
[380225034,1755616263824,-1100.62,0.00023287,2]
[380225035,1755616263833,-706.96,0.00023287,2]
[380225036,1755616263843,-661.98,0.00023287,2]
[380225037,1755616263852,-480.0,0.00023287,2]
[380225038,1755616263862,-1185.93,0.00023287,2]
[380225039,1755616263872,-770.15,0.00023287,2]
[380225040,1755616263882,-261.9515838,0.00023287,2]
[380225041,1755616263892,-498.68,0.00023287,2]
[380225042,1755616263903,-480.0,0.00023287,2]
[380225043,1755616263913,-2730.0,0.00023287,2]
[380225044,1755616263923,-480.0,0.00023287,2]
[380225045,1755616263933,-636.86,0.00023287,2]
[380225046,1755616263944,-2825.73,0.00023287,2]
[380225047,1755616263954,-577.81,0.00023287,2]
[380225048,1755616263965,-1817.53,0.00023287,2]
[380225049,1755616263975,-799.99,0.00023287,2]
[380225050,1755616263985,-310.635922,0.00023288,2]
[380225051,1755616263995,-216.0,0.00023322,2]
[380225052,1755616264004,-168.0,0.00023344,2]
[380225053,1755616264015,-24331.25,0.000234,2]
[380225054,1755616264028,-12090.27,0.000235,7]
[380225055,1755616264037,-3753.67,0.000235,7]
[380225056,1755616264047,-168.0,0.00023514,2]
[380225057,1755616264059,-2150.01,0.00023561,2]
[380225058,1755616264071,-614.02,0.00023561,2]
[380225059,1755616264081,-736.97,0.00023561,2]
[380225060,1755616264091,-2321.29,0.00023561,2]
[380225061,1755616264101,-640.78,0.00023561,2]
[380225062,1755616264111,-1158.02,0.00023561,2]
[380225063,1755616264121,-480.0,0.00023561,2]
[380225064,1755616264131,-1100.62,0.00023561,2]
[380225065,1755616264142,-706.96,0.00023561,2]
[380225066,1755616264152,-661.98,0.00023561,2]
[380225067,1755616264162,-480.0,0.00023561,2]
[380225068,1755616264172,-1185.93,0.00023561,2]
[380225069,1755616264182,-770.15,0.00023561,2]
[380225070,1755616264192,-498.68,0.00023561,2]
[380225071,1755616264202,-480.0,0.00023561,2]
[380225072,1755616264212,-2730.0,0.00023561,2]
[380225073,1755616264221,-480.0,0.00023561,2]
[380225074,1755616264231,-636.86,0.00023561,2]
[380225075,1755616264241,-2825.73,0.00023561,2]
[380225076,1755616264251,-577.81,0.00023561,2]
[380225077,1755616264261,-1817.53,0.00023561,2]
[380225078,1755616264271,-799.99,0.00023561,2]
[380225079,1755616264284,-696.38,0.000236,7]
[380225080,1755616264294,-151.0,0.000236,9]
[380225081,1755616264303,-168.0,0.00023601,2]
[380225082,1755616264313,-5306.44058765,0.00023614,2]
[380225083,1755616264323,-168.0,0.00023626,2]
[380225084,1755616264333,-864.0,0.00023654,20]
[380225085,1755616264342,-168.0,0.00023672,2]
[380225086,1755616264352,-972.0,0.0002378,2]
[380225087,1755616264362,-174.195,0.0002378,2]
[380225088,1755616264371,-151.0,0.00023801,5]
[380225089,1755616264381,-860.0,0.00023823,2]
[380225090,1755616264391,-800.0,0.00023825,2]
[380225091,1755616264400,-168.0,0.00023827,2]
[380225092,1755616264410,-2150.01,0.00023835,2]
[380225093,1755616264420,-736.97,0.00023835,2]
[380225094,1755616264429,-2321.29,0.00023835,2]
[380225095,1755616264439,-640.78,0.00023835,2]
[380225096,1755616264448,-1158.02,0.00023835,2]
[380225097,1755616264458,-480.0,0.00023835,2]
[380225098,1755616264468,-1100.62,0.00023835,2]
[380225099,1755616264478,-706.96,0.00023835,2]
[380225100,1755616264487,-661.98,0.00023835,2]
[380225101,1755616264496,-504.24,0.00023835,2]
[380225102,1755616264506,-1185.93,0.00023835,2]
[380225103,1755616264516,-770.15,0.00023835,2]
[380225104,1755616264528,-498.68,0.00023835,2]
[380225105,1755616264538,-480.0,0.00023835,2]
[380225106,1755616264548,-2730.0,0.00023835,2]
[380225107,1755616264557,-215.67,0.00023835,2]
[380225108,1755616264568,-636.86,0.00023835,2]
[380225109,1755616264577,-608.45047114,0.00023835,2]
[380225110,1755616264739,-460.0,0.00019178,2]
[380225111,1755616264748,-151.0,0.0002096,2]
[380225112,1755616264758,-151.0,0.0002096,2]
[380225113,1755616264767,-480.0,0.00021917,2]
[380225114,1755616264779,-480.0,0.00022191,2]
[380225115,1755616264788,-480.0,0.00022465,2]
[380225116,1755616264797,-480.0,0.00022739,2]
[380225117,1755616264807,-480.0,0.00023013,2]
[380225118,1755616264817,-480.0,0.00023287,2]
[380225119,1755616264826,-480.0,0.00023561,2]
[380225120,1755616264835,-2217.27952886,0.00023835,2]
[380225121,1755616264845,-577.81,0.00023835,2]
[380225122,1755616264855,-1817.53,0.00023835,2]
[380225123,1755616264864,-799.99,0.00023835,2]
[380225124,1755616264875,-480.0,0.00023835,2]
[380225125,1755616264885,-168.0,0.00023835,2]
[380225126,1755616264895,-160.0,0.00024,7]
[380225127,1755616264905,-216.8835046,0.00024,7]
[380225128,1755616264915,-160.0,0.00024,7]
[380225129,1755616264925,-843.93972674,0.00024,7]
[380225130,1755616264935,-232.21311493,0.00024,7]
[380225131,1755616264945,-168.0,0.00024019,2]
[380225132,1755616264955,-5306.44058765,0.00024027,2]
[380225133,1755616264964,-168.0,0.00024031,2]
[380225134,1755616264974,-168.0,0.00024058,2]
[380225135,1755616264984,-151.0,0.000241,8]
[380225136,1755616264998,-2150.01,0.00024109,2]
[380225137,1755616265008,-736.97,0.00024109,2]
[380225138,1755616265018,-2321.29,0.00024109,2]
[380225139,1755616265029,-640.78,0.00024109,2]
[380225140,1755616265039,-1158.02,0.00024109,2]
[380225141,1755616265049,-480.0,0.00024109,2]
[380225142,1755616265059,-1100.62,0.00024109,2]
[380225143,1755616265069,-706.96,0.00024109,2]
[380225144,1755616265081,-661.98,0.00024109,2]
[380225145,1755616265090,-1185.93,0.00024109,2]